[Event "*** Titled Tuesday Blitz"]
[Site "Chess.com"]
[Date "2020.05.26"]
[Round "5"]
[White "Fortitudine"]
[Black "elamier"]
[Result "1-0"]
[WhiteElo "2307"]
[BlackElo "2098"]
[TimeControl "180+1"]
[EndTime "10:55:32 PDT"]
[Termination "Fortitudine won on time"]

1. d4 {[%clk 0:03:00.9]} 1... d5 {[%clk 0:02:42.6]} 2. Nc3 {[%clk 0:03:00.2]}
2... Nf6 {[%clk 0:02:37.8]} 3. Bg5 {[%clk 0:03:00.1]} 3... Ne4 {[%clk
0:02:33.1]} 4. Nxe4 {[%clk 0:02:59.8]} 4... dxe4 {[%clk 0:02:32.7]} 5. Qd2
{[%clk 0:02:56.2]} 5... Bf5 {[%clk 0:02:15.5]} 6. e3 {[%clk 0:02:48]} 6... c6
{[%clk 0:02:13.9]} 7. Ne2 {[%clk 0:02:44]} 7... Nd7 {[%clk 0:02:11]} 8. Ng3
{[%clk 0:02:40.8]} 8... Bg6 {[%clk 0:02:10]} 9. h4 {[%clk 0:02:07.9]} 9... f6
{[%clk 0:01:31.5]} 10. Bf4 {[%clk 0:02:07.2]} 10... f5 {[%clk 0:01:18.6]} 11. h5
{[%clk 0:02:05]} 11... Bf7 {[%clk 0:01:17]} 12. Nxf5 {[%clk 0:02:01]} 12... Qb6
{[%clk 0:01:04.7]} 13. c3 {[%clk 0:01:43.6]} 13... c5 {[%clk 0:00:53.8]} 14. h6
{[%clk 0:01:35.9]} 14... g6 {[%clk 0:00:51.5]} 15. Ng7+ {[%clk 0:01:35.4]} 15...
Kd8 {[%clk 0:00:39]} 16. dxc5 {[%clk 0:01:23.9]} 16... Qxc5 {[%clk 0:00:31.2]}
17. Rd1 {[%clk 0:01:18.7]} 17... Qc6 {[%clk 0:00:24.3]} 18. Be2 {[%clk
0:01:03.9]} 18... e6 {[%clk 0:00:17]} 19. Bc4 {[%clk 0:00:52.3]} 19... Be7
{[%clk 0:00:13.8]} 20. Bb3 {[%clk 0:00:47.2]} 20... Kc8 {[%clk 0:00:05]} 21. Bd6
{[%clk 0:00:35.5]} 1-0

[Event "*** Titled Tuesday Blitz"]
[Site "Chess.com"]
[Date "2020.05.26"]
[Round "5"]
[White "vaishali2001"]
[Black "zajka-molotok"]
[Result "0-1"]
[WhiteElo "2604"]
[BlackElo "2377"]
[TimeControl "180+1"]
[EndTime "10:55:33 PDT"]
[Termination "zajka-molotok won by resignation"]

1. Nf3 {[%clk 0:03:00]} 1... d5 {[%clk 0:02:59.2]} 2. g3 {[%clk 0:02:59.6]} 2...
Nf6 {[%clk 0:02:59.2]} 3. Bg2 {[%clk 0:03:00]} 3... Bf5 {[%clk 0:02:57.8]} 4.
O-O {[%clk 0:02:58.1]} 4... e6 {[%clk 0:02:57.1]} 5. d3 {[%clk 0:02:55.5]} 5...
h6 {[%clk 0:02:54.3]} 6. c4 {[%clk 0:02:53.8]} 6... c6 {[%clk 0:02:53.5]} 7.
cxd5 {[%clk 0:02:51.8]} 7... exd5 {[%clk 0:02:51.8]} 8. Nc3 {[%clk 0:02:48.2]}
8... Be7 {[%clk 0:02:41.4]} 9. Nd4 {[%clk 0:02:36.1]} 9... Bh7 {[%clk
0:02:36.1]} 10. e4 {[%clk 0:02:36]} 10... O-O {[%clk 0:02:27]} 11. Re1 {[%clk
0:02:29.8]} 11... dxe4 {[%clk 0:02:21.5]} 12. dxe4 {[%clk 0:02:30.7]} 12... Bc5
{[%clk 0:02:21.4]} 13. Be3 {[%clk 0:02:27.5]} 13... Nbd7 {[%clk 0:02:08.8]} 14.
f4 {[%clk 0:02:13.9]} 14... Bb4 {[%clk 0:01:53.5]} 15. Bf2 {[%clk 0:01:54.2]}
15... Re8 {[%clk 0:01:46.6]} 16. e5 {[%clk 0:01:52.5]} 16... Nd5 {[%clk
0:01:41.9]} 17. Qb3 {[%clk 0:01:49.2]} 17... Nc5 {[%clk 0:01:32.9]} 18. Qd1
{[%clk 0:01:20.3]} 18... Nd3 {[%clk 0:01:24.7]} 19. Nxd5 {[%clk 0:00:57.6]}
19... Nxf2 {[%clk 0:00:54.9]} 20. Kxf2 {[%clk 0:00:40.9]} 20... Bxe1+ {[%clk
0:00:53.2]} 21. Qxe1 {[%clk 0:00:30.8]} 21... cxd5 {[%clk 0:00:54.1]} 22. Qb4
{[%clk 0:00:29.3]} 22... Be4 {[%clk 0:00:50]} 23. Re1 {[%clk 0:00:16.6]} 23...
Bxg2 {[%clk 0:00:49]} 24. Kxg2 {[%clk 0:00:17.5]} 24... Qb6 {[%clk 0:00:48.9]}
25. Qxb6 {[%clk 0:00:16.4]} 25... axb6 {[%clk 0:00:48.8]} 26. a3 {[%clk
0:00:16.8]} 26... Rac8 {[%clk 0:00:47]} 27. Re4 {[%clk 0:00:16.5]} 27... dxe4
{[%clk 0:00:46.4]} 0-1

[Event "*** Titled Tuesday Blitz"]
[Site "Chess.com"]
[Date "2020.05.26"]
[Round "5"]
[White "tgpgoat"]
[Black "HrvojeZagreb"]
[Result "0-1"]
[WhiteElo "2058"]
[BlackElo "2172"]
[TimeControl "180+1"]
[EndTime "10:55:36 PDT"]
[Termination "HrvojeZagreb won by resignation"]

1. e4 {[%clk 0:03:00.9]} 1... e6 {[%clk 0:02:59.6]} 2. d4 {[%clk 0:03:00.5]}
2... d5 {[%clk 0:02:59.7]} 3. Nd2 {[%clk 0:03:00.6]} 3... dxe4 {[%clk
0:02:59.8]} 4. Nxe4 {[%clk 0:03:01.5]} 4... Nd7 {[%clk 0:03:00.1]} 5. Bg5 {[%clk
0:03:01.2]} 5... Ngf6 {[%clk 0:03:01]} 6. Bxf6 {[%clk 0:03:00]} 6... Nxf6 {[%clk
0:02:58]} 7. Bd3 {[%clk 0:02:59.9]} 7... c5 {[%clk 0:02:40.3]} 8. dxc5 {[%clk
0:02:29.6]} 8... Nxe4 {[%clk 0:02:24.5]} 9. Bxe4 {[%clk 0:02:30.5]} 9... Qxd1+
{[%clk 0:02:21.4]} 10. Rxd1 {[%clk 0:02:29]} 10... Bxc5 {[%clk 0:02:21.5]} 11.
Nf3 {[%clk 0:02:27.4]} 11... Ke7 {[%clk 0:02:09.9]} 12. c3 {[%clk 0:02:26.7]}
12... a5 {[%clk 0:02:08.7]} 13. O-O {[%clk 0:02:26.2]} 13... Ra6 {[%clk
0:01:58.2]} 14. Rfe1 {[%clk 0:02:25.4]} 14... Rd6 {[%clk 0:01:48.1]} 15. Rxd6
{[%clk 0:02:20.2]} 15... Bxd6 {[%clk 0:01:49]} 16. Nd4 {[%clk 0:02:20]} 16... g6
{[%clk 0:01:45.6]} 17. Nb5 {[%clk 0:02:15.6]} 17... Bb8 {[%clk 0:01:44.3]} 18.
Bf3 {[%clk 0:02:10.4]} 18... Rd8 {[%clk 0:01:43.1]} 19. Nd4 {[%clk 0:02:10.3]}
19... Ba7 {[%clk 0:01:35.5]} 20. Nb5 {[%clk 0:02:07.6]} 20... Bb6 {[%clk
0:01:32.3]} 21. Rd1 {[%clk 0:02:05.5]} 21... Rxd1+ {[%clk 0:01:29.4]} 22. Bxd1
{[%clk 0:02:06.4]} 22... Bd7 {[%clk 0:01:27]} 23. Na3 {[%clk 0:02:05.8]} 23...
Bc6 {[%clk 0:01:23]} 24. Nc4 {[%clk 0:02:04.7]} 24... Bc7 {[%clk 0:01:22.7]} 25.
Ne3 {[%clk 0:02:04.8]} 25... f5 {[%clk 0:01:19.6]} 26. Kf1 {[%clk 0:02:03]}
26... Bxh2 {[%clk 0:01:12.6]} 27. g3 {[%clk 0:02:03]} 27... f4 {[%clk
0:00:49.2]} 28. gxf4 {[%clk 0:01:49.1]} 28... Bxf4 {[%clk 0:00:50.1]} 29. Nc4
{[%clk 0:01:46.5]} 29... Bc7 {[%clk 0:00:44.1]} 30. Be2 {[%clk 0:01:46.2]} 30...
Kf6 {[%clk 0:00:40.7]} 31. b4 {[%clk 0:01:44.3]} 31... axb4 {[%clk 0:00:41.3]}
32. cxb4 {[%clk 0:01:45.2]} 32... h5 {[%clk 0:00:37.1]} 33. f3 {[%clk
0:01:42.2]} 33... g5 {[%clk 0:00:34.3]} 34. Nb2 {[%clk 0:01:41.1]} 34... h4
{[%clk 0:00:33]} 35. a4 {[%clk 0:01:40.6]} 35... h3 {[%clk 0:00:30.6]} 36. b5
{[%clk 0:01:39.3]} 36... Bd5 {[%clk 0:00:29.8]} 37. Nc4 {[%clk 0:01:37.8]} 37...
h2 {[%clk 0:00:26.4]} 38. Kg2 {[%clk 0:01:36.9]} 38... g4 {[%clk 0:00:26.5]} 39.
Nd2 {[%clk 0:01:31.4]} 39... Bf4 {[%clk 0:00:26.3]} 40. Ne4+ {[%clk 0:01:26.5]}
40... Ke5 {[%clk 0:00:24.8]} 41. a5 {[%clk 0:01:10.8]} 41... gxf3+ {[%clk
0:00:20.5]} 42. Bxf3 {[%clk 0:01:10.2]} 42... Bxe4 {[%clk 0:00:18.6]} 43. Bxe4
{[%clk 0:01:10.3]} 43... Kxe4 {[%clk 0:00:18.2]} 44. a6 {[%clk 0:01:11.2]} 44...
bxa6 {[%clk 0:00:17.3]} 45. bxa6 {[%clk 0:01:11.4]} 45... Bb8 {[%clk 0:00:17.3]}
0-1

[Event "*** Titled Tuesday Blitz"]
[Site "Chess.com"]
[Date "2020.05.26"]
[Round "5"]
[White "ChristianAlm"]
[Black "Gennady_Kozlov"]
[Result "0-1"]
[WhiteElo "2393"]
[BlackElo "2559"]
[TimeControl "180+1"]
[EndTime "10:55:37 PDT"]
[Termination "Gennady_Kozlov won by resignation"]

1. d4 {[%clk 0:03:00.9]} 1... e6 {[%clk 0:02:58.9]} 2. e4 {[%clk 0:03:00.2]}
2... d5 {[%clk 0:02:57.8]} 3. Nc3 {[%clk 0:03:00.5]} 3... Nf6 {[%clk 0:02:56.9]}
4. Bg5 {[%clk 0:03:00.1]} 4... Be7 {[%clk 0:02:56.3]} 5. e5 {[%clk 0:02:59.2]}
5... Nfd7 {[%clk 0:02:56.7]} 6. h4 {[%clk 0:02:59.2]} 6... Nc6 {[%clk
0:02:56.7]} 7. Qg4 {[%clk 0:02:52.6]} 7... h5 {[%clk 0:02:55.3]} 8. Qf4 {[%clk
0:02:24.2]} 8... Nb6 {[%clk 0:02:47.4]} 9. Nf3 {[%clk 0:02:17.1]} 9... Bd7
{[%clk 0:02:45.6]} 10. Bd3 {[%clk 0:02:12.7]} 10... Bxg5 {[%clk 0:02:43.1]} 11.
hxg5 {[%clk 0:02:05.9]} 11... Qe7 {[%clk 0:02:41.7]} 12. g6 {[%clk 0:02:06.1]}
12... O-O-O {[%clk 0:02:40.2]} 13. gxf7 {[%clk 0:02:01.6]} 13... Rdf8 {[%clk
0:02:39.9]} 14. Ng5 {[%clk 0:01:42.4]} 14... Nd8 {[%clk 0:02:34.8]} 15. Bg6
{[%clk 0:01:38]} 15... Rh6 {[%clk 0:02:31]} 16. Bxh5 {[%clk 0:00:51]} 16... Nxf7
{[%clk 0:02:29.3]} 17. Nxf7 {[%clk 0:00:39.8]} 17... Rxf7 {[%clk 0:02:28]} 18.
Qd2 {[%clk 0:00:35.1]} 18... Nc4 {[%clk 0:02:26.3]} 19. Qe2 {[%clk 0:00:31]}
19... Qg5 {[%clk 0:02:24.4]} 20. Rh3 {[%clk 0:00:20.6]} 20... Rf4 {[%clk
0:02:19.8]} 21. Nd1 {[%clk 0:00:12.6]} 21... Qxg2 {[%clk 0:02:12.8]} 22. Qf1
{[%clk 0:00:07.9]} 22... Re4+ {[%clk 0:02:08]} 23. Ne3 {[%clk 0:00:05]} 23...
Qg5 {[%clk 0:01:42.8]} 24. O-O-O {[%clk 0:00:02.6]} 24... Rxh5 {[%clk
0:01:39.6]} 25. Rxh5 {[%clk 0:00:03.5]} 25... Qxh5 {[%clk 0:01:40.2]} 26. Kb1
{[%clk 0:00:04]} 26... Nxe3 {[%clk 0:01:36.3]} 27. fxe3 {[%clk 0:00:04.9]} 27...
Rxe3 {[%clk 0:01:36.9]} 28. Qf8+ {[%clk 0:00:04.8]} 28... Be8 {[%clk 0:01:37.3]}
29. Rf1 {[%clk 0:00:03.8]} 29... Rh3 {[%clk 0:01:31.8]} 30. a3 {[%clk
0:00:03.3]} 30... Rh1 {[%clk 0:01:31.3]} 31. Rxh1 {[%clk 0:00:02.4]} 31... Qxh1+
{[%clk 0:01:31.3]} 32. Ka2 {[%clk 0:00:03.3]} 32... Qh5 {[%clk 0:01:31.5]} 33.
Qe7 {[%clk 0:00:03.2]} 33... Qf7 {[%clk 0:01:32.4]} 34. Qc5 {[%clk 0:00:02.8]}
34... b6 {[%clk 0:01:30.8]} 35. Qb4 {[%clk 0:00:03.7]} 35... Kb7 {[%clk
0:01:31]} 36. Qc3 {[%clk 0:00:04.6]} 36... a5 {[%clk 0:01:30.8]} 37. b3 {[%clk
0:00:05.5]} 37... g5 {[%clk 0:01:30.4]} 38. Kb2 {[%clk 0:00:06.4]} 38... Qf4
{[%clk 0:01:30.4]} 39. b4 {[%clk 0:00:05.6]} 39... axb4 {[%clk 0:01:28.7]} 40.
axb4 {[%clk 0:00:05.4]} 40... g4 {[%clk 0:01:28.9]} 41. Qb3 {[%clk 0:00:05.5]}
41... g3 {[%clk 0:01:28.3]} 42. b5 {[%clk 0:00:05.8]} 42... g2 {[%clk
0:01:26.3]} 43. Qa4 {[%clk 0:00:06]} 43... g1=Q {[%clk 0:01:24.4]} 44. Qa6+
{[%clk 0:00:06.9]} 44... Kb8 {[%clk 0:01:24.1]} 0-1

[Event "*** Titled Tuesday Blitz"]
[Site "Chess.com"]
[Date "2020.05.26"]
[Round "5"]
[White "OK97"]
[Black "Rozum_Ivan"]
[Result "0-1"]
[WhiteElo "2775"]
[BlackElo "2625"]
[TimeControl "180+1"]
[EndTime "10:55:41 PDT"]
[Termination "Rozum_Ivan won on time"]

1. e4 {[%clk 0:03:00.9]} 1... c6 {[%clk 0:02:59.7]} 2. d4 {[%clk 0:03:00.1]}
2... d5 {[%clk 0:02:59.3]} 3. e5 {[%clk 0:03:00.6]} 3... Bf5 {[%clk 0:02:57.7]}
4. h4 {[%clk 0:03:01.1]} 4... h5 {[%clk 0:02:56.7]} 5. c4 {[%clk 0:02:57.6]}
5... e6 {[%clk 0:02:56.4]} 6. Nc3 {[%clk 0:02:57]} 6... Ne7 {[%clk 0:02:53.4]}
7. Nge2 {[%clk 0:02:56.4]} 7... dxc4 {[%clk 0:02:51.6]} 8. Ng3 {[%clk
0:02:56.6]} 8... Qd7 {[%clk 0:02:50.8]} 9. Bxc4 {[%clk 0:02:47.7]} 9... Bg6
{[%clk 0:02:50.9]} 10. Bg5 {[%clk 0:02:42.7]} 10... Na6 {[%clk 0:02:43.2]} 11.
O-O {[%clk 0:02:06.1]} 11... Nb4 {[%clk 0:02:38.5]} 12. Rc1 {[%clk 0:01:53.6]}
12... Nf5 {[%clk 0:02:38.4]} 13. Nxf5 {[%clk 0:01:33.3]} 13... Bxf5 {[%clk
0:02:39.3]} 14. a3 {[%clk 0:01:18.2]} 14... Nd5 {[%clk 0:02:39.3]} 15. Nxd5
{[%clk 0:01:07.5]} 15... exd5 {[%clk 0:02:29.6]} 16. Be2 {[%clk 0:01:07.9]}
16... Be7 {[%clk 0:02:29]} 17. Bxe7 {[%clk 0:00:59.8]} 17... Qxe7 {[%clk
0:02:28.9]} 18. Qb3 {[%clk 0:00:53.8]} 18... Qxh4 {[%clk 0:01:59.9]} 19. Qxb7
{[%clk 0:00:53.2]} 19... O-O {[%clk 0:02:00.3]} 20. Qxc6 {[%clk 0:00:39.5]}
20... Qxd4 {[%clk 0:01:59]} 21. Bxh5 {[%clk 0:00:36.3]} 21... Qxe5 {[%clk
0:01:53.6]} 22. Bf3 {[%clk 0:00:30.3]} 22... Be6 {[%clk 0:01:26.1]} 23. b4
{[%clk 0:00:21.3]} 23... Rac8 {[%clk 0:01:26.2]} 24. Qa6 {[%clk 0:00:21.3]}
24... Rc7 {[%clk 0:01:22.9]} 25. Rxc7 {[%clk 0:00:18.5]} 25... Qxc7 {[%clk
0:01:23.8]} 26. Rd1 {[%clk 0:00:18.6]} 26... Rd8 {[%clk 0:01:22.6]} 27. Qd3
{[%clk 0:00:14.2]} 27... d4 {[%clk 0:01:20.9]} 28. Be4 {[%clk 0:00:14.4]} 28...
Qe5 {[%clk 0:01:14.7]} 29. g3 {[%clk 0:00:14.4]} 29... g6 {[%clk 0:01:12.4]} 30.
Kg2 {[%clk 0:00:12.7]} 30... Kg7 {[%clk 0:01:12.6]} 31. Rh1 {[%clk 0:00:10.4]}
31... Rc8 {[%clk 0:01:11.5]} 32. Rh4 {[%clk 0:00:07.5]} 32... Rc3 {[%clk
0:01:07.6]} 33. Qe2 {[%clk 0:00:02.4]} 33... Bd5 {[%clk 0:01:04.9]} 34. f3
{[%clk 0:00:01.3]} 34... Re3 {[%clk 0:01:03.2]} 0-1

[Event "*** Titled Tuesday Blitz"]
[Site "Chess.com"]
[Date "2020.05.26"]
[Round "5"]
[White "JulAnt"]
[Black "malakismayil"]
[Result "0-1"]
[WhiteElo "2405"]
[BlackElo "2297"]
[TimeControl "180+1"]
[EndTime "10:55:41 PDT"]
[Termination "malakismayil won by resignation"]

1. e4 {[%clk 0:03:00.9]} 1... e5 {[%clk 0:02:58.7]} 2. Nf3 {[%clk 0:03:01.2]}
2... Nc6 {[%clk 0:02:58.6]} 3. Bb5 {[%clk 0:03:01.5]} 3... Bc5 {[%clk 0:02:52]}
4. O-O {[%clk 0:02:58.4]} 4... d6 {[%clk 0:02:42.4]} 5. c3 {[%clk 0:02:57.5]}
5... Bd7 {[%clk 0:02:40.7]} 6. d4 {[%clk 0:02:52.2]} 6... exd4 {[%clk
0:02:38.4]} 7. cxd4 {[%clk 0:02:52.1]} 7... Bb6 {[%clk 0:02:37.9]} 8. Nc3 {[%clk
0:02:52.3]} 8... Nge7 {[%clk 0:02:33.7]} 9. Be3 {[%clk 0:02:45]} 9... O-O {[%clk
0:02:30.5]} 10. Re1 {[%clk 0:02:43.4]} 10... Ng6 {[%clk 0:02:28]} 11. h3 {[%clk
0:02:38.4]} 11... f6 {[%clk 0:02:18.4]} 12. Ne2 {[%clk 0:02:27.5]} 12... Nce7
{[%clk 0:02:15]} 13. Bc4+ {[%clk 0:02:23.9]} 13... Kh8 {[%clk 0:02:14.5]} 14.
Ng3 {[%clk 0:02:23.9]} 14... Qc8 {[%clk 0:02:06.4]} 15. Kh2 {[%clk 0:02:16.2]}
15... Be6 {[%clk 0:02:03.8]} 16. Bxe6 {[%clk 0:02:06.7]} 16... Qxe6 {[%clk
0:02:04.7]} 17. Qd2 {[%clk 0:02:06.5]} 17... Qf7 {[%clk 0:02:02.1]} 18. Rad1
{[%clk 0:01:59.5]} 18... h6 {[%clk 0:02:00.9]} 19. Nf5 {[%clk 0:01:48.6]} 19...
Nxf5 {[%clk 0:01:58.6]} 20. exf5 {[%clk 0:01:49.5]} 20... Ne7 {[%clk 0:01:57.3]}
21. Bxh6 {[%clk 0:01:10.4]} 21... Nxf5 {[%clk 0:01:55.9]} 22. Bf4 {[%clk
0:00:56.8]} 22... Rae8 {[%clk 0:01:51.8]} 23. g4 {[%clk 0:00:45.8]} 23... Ne7
{[%clk 0:01:50.1]} 24. Bg3 {[%clk 0:00:45.3]} 24... Ng6 {[%clk 0:01:45.7]} 25.
a3 {[%clk 0:00:40.8]} 25... Qd5 {[%clk 0:01:44.7]} 26. Qd3 {[%clk 0:00:36.4]}
26... Qf7 {[%clk 0:01:34.3]} 27. Rxe8 {[%clk 0:00:28.7]} 27... Rxe8 {[%clk
0:01:33.9]} 28. Re1 {[%clk 0:00:22.4]} 28... Rxe1 {[%clk 0:01:27]} 29. Nxe1
{[%clk 0:00:23.3]} 29... Qe8 {[%clk 0:01:26.8]} 30. Nf3 {[%clk 0:00:22.7]} 30...
d5 {[%clk 0:01:22.4]} 31. Nd2 {[%clk 0:00:19.2]} 31... c6 {[%clk 0:01:16.4]} 32.
Nf1 {[%clk 0:00:19.4]} 32... Qe4 {[%clk 0:01:11.1]} 33. Qd2 {[%clk 0:00:14]}
33... Qxd4 {[%clk 0:01:01.8]} 34. Qe2 {[%clk 0:00:14.2]} 34... Qe4 {[%clk
0:00:59.4]} 35. Qd2 {[%clk 0:00:14.4]} 35... Ne5 {[%clk 0:00:58.2]} 36. g5
{[%clk 0:00:12.3]} 36... Nf3+ {[%clk 0:00:57.6]} 0-1

[Event "*** Titled Tuesday Blitz"]
[Site "Chess.com"]
[Date "2020.05.26"]
[Round "5"]
[White "EvgenyRomanov"]
[Black "IAgrest"]
[Result "1-0"]
[WhiteElo "2643"]
[BlackElo "2267"]
[TimeControl "180+1"]
[EndTime "10:55:43 PDT"]
[Termination "EvgenyRomanov won on time"]

1. e4 {[%clk 0:03:00.9]} 1... e5 {[%clk 0:02:57.6]} 2. Nf3 {[%clk 0:02:58.1]}
2... Nc6 {[%clk 0:02:57.6]} 3. Bc4 {[%clk 0:02:45.5]} 3... Nf6 {[%clk
0:02:57.1]} 4. d3 {[%clk 0:02:44.1]} 4... Bc5 {[%clk 0:02:56.4]} 5. O-O {[%clk
0:02:43.3]} 5... a6 {[%clk 0:02:54.5]} 6. Bg5 {[%clk 0:02:39.8]} 6... h6 {[%clk
0:02:49.2]} 7. Bxf6 {[%clk 0:02:39.3]} 7... Qxf6 {[%clk 0:02:48.5]} 8. Nc3
{[%clk 0:02:40.2]} 8... Ne7 {[%clk 0:02:41.3]} 9. d4 {[%clk 0:02:15.5]} 9...
exd4 {[%clk 0:02:33.4]} 10. e5 {[%clk 0:02:15.1]} 10... Qg6 {[%clk 0:02:23]} 11.
Nxd4 {[%clk 0:02:09.4]} 11... O-O {[%clk 0:02:11.6]} 12. Bd3 {[%clk 0:02:01.5]}
12... f5 {[%clk 0:01:51.6]} 13. Nb3 {[%clk 0:01:56.9]} 13... Ba7 {[%clk
0:01:39.7]} 14. Re1 {[%clk 0:01:52.5]} 14... b5 {[%clk 0:01:24.1]} 15. Qf3
{[%clk 0:01:51.3]} 15... Rb8 {[%clk 0:01:19.5]} 16. Nd5 {[%clk 0:01:23.7]} 16...
Nxd5 {[%clk 0:01:16.6]} 17. Qxd5+ {[%clk 0:01:24.6]} 17... Kh8 {[%clk
0:01:15.7]} 18. Bf1 {[%clk 0:01:23.1]} 18... c6 {[%clk 0:00:42.2]} 19. Qd2
{[%clk 0:01:12.5]} 19... c5 {[%clk 0:00:39.4]} 20. Rad1 {[%clk 0:01:07.6]} 20...
c4 {[%clk 0:00:30]} 21. Na5 {[%clk 0:01:05]} 21... Bb6 {[%clk 0:00:23.6]} 22. b4
{[%clk 0:01:01.5]} 22... cxb3 {[%clk 0:00:16]} 23. cxb3 {[%clk 0:00:58]} 23...
Re8 {[%clk 0:00:12.5]} 24. Qb4 {[%clk 0:00:48.3]} 24... d5 {[%clk 0:00:05.4]}
25. exd6 {[%clk 0:00:42.7]} 25... Rxe1 {[%clk 0:00:04.8]} 26. Rxe1 {[%clk
0:00:43.6]} 26... Bd7 {[%clk 0:00:04.7]} 27. Re7 {[%clk 0:00:41.6]} 27... Rd8
{[%clk 0:00:01.6]} 28. Nb7 {[%clk 0:00:39.5]} 1-0

[Event "*** Titled Tuesday Blitz"]
[Site "Chess.com"]
[Date "2020.05.26"]
[Round "5"]
[White "NormWeinstein"]
[Black "tteshan"]
[Result "1-0"]
[WhiteElo "2352"]
[BlackElo "2176"]
[TimeControl "180+1"]
[EndTime "10:55:43 PDT"]
[Termination "NormWeinstein won by resignation"]

1. e4 {[%clk 0:03:00.9]} 1... c5 {[%clk 0:02:59.6]} 2. Nf3 {[%clk 0:03:00.9]}
2... d6 {[%clk 0:02:59.9]} 3. Nc3 {[%clk 0:03:01.2]} 3... Nc6 {[%clk 0:02:59.4]}
4. d4 {[%clk 0:03:00.7]} 4... cxd4 {[%clk 0:02:58.4]} 5. Nxd4 {[%clk 0:03:01]}
5... g6 {[%clk 0:02:59]} 6. Be3 {[%clk 0:03:00.5]} 6... Bg7 {[%clk 0:02:59.2]}
7. Bc4 {[%clk 0:03:00.5]} 7... Nf6 {[%clk 0:02:59.3]} 8. h3 {[%clk 0:03:00.3]}
8... O-O {[%clk 0:02:59.6]} 9. Bb3 {[%clk 0:03:00.6]} 9... Bd7 {[%clk
0:02:55.8]} 10. O-O {[%clk 0:03:00.2]} 10... Rc8 {[%clk 0:02:54]} 11. Re1 {[%clk
0:03:00]} 11... a6 {[%clk 0:02:53.2]} 12. Qd2 {[%clk 0:02:58.3]} 12... Re8
{[%clk 0:02:50.5]} 13. Rad1 {[%clk 0:02:57.2]} 13... Ne5 {[%clk 0:02:48.9]} 14.
Bg5 {[%clk 0:02:38.1]} 14... Nc4 {[%clk 0:02:46.5]} 15. Bxc4 {[%clk 0:02:36.9]}
15... Rxc4 {[%clk 0:02:45]} 16. Nf3 {[%clk 0:02:29.7]} 16... b5 {[%clk
0:02:34.7]} 17. e5 {[%clk 0:02:21.2]} 17... b4 {[%clk 0:01:50.8]} 18. exf6
{[%clk 0:01:49.5]} 18... bxc3 {[%clk 0:01:49.7]} 19. Qd3 {[%clk 0:01:37.6]}
19... exf6 {[%clk 0:01:13.6]} 20. Rxe8+ {[%clk 0:01:32.2]} 20... Qxe8 {[%clk
0:01:13.7]} 21. Qxc4 {[%clk 0:01:31.1]} 21... fxg5 {[%clk 0:01:13.8]} 22. bxc3
{[%clk 0:01:25.7]} 22... Be6 {[%clk 0:01:06.5]} 23. Qxa6 {[%clk 0:01:19]} 23...
Bxc3 {[%clk 0:00:58.1]} 24. Nxg5 {[%clk 0:01:09.3]} 24... Bf5 {[%clk 0:00:53.1]}
25. Qxd6 {[%clk 0:00:55.7]} 25... Bxc2 {[%clk 0:00:48.2]} 26. Qd8 {[%clk
0:00:49.3]} 26... Qxd8 {[%clk 0:00:37]} 27. Rxd8+ {[%clk 0:00:48.6]} 27... Kg7
{[%clk 0:00:37.3]} 28. Rc8 {[%clk 0:00:48.8]} 28... Bf6 {[%clk 0:00:30.2]} 29.
Rxc2 {[%clk 0:00:47.1]} 29... Bxg5 {[%clk 0:00:29.5]} 30. a4 {[%clk 0:00:47]}
30... Bd8 {[%clk 0:00:29.5]} 31. Rd2 {[%clk 0:00:41]} 31... Bc7 {[%clk
0:00:27.9]} 32. Rd7 {[%clk 0:00:39.4]} 32... Bb6 {[%clk 0:00:26.9]} 33. Rb7
{[%clk 0:00:38.2]} 33... Bd8 {[%clk 0:00:26.6]} 34. Rb5 {[%clk 0:00:37.6]} 34...
Kf6 {[%clk 0:00:26]} 35. a5 {[%clk 0:00:38]} 1-0

[Event "*** Titled Tuesday Blitz"]
[Site "Chess.com"]
[Date "2020.05.26"]
[Round "5"]
[White "valeriocarnicelli"]
[Black "wannabe2700"]
[Result "1-0"]
[WhiteElo "2579"]
[BlackElo "2717"]
[TimeControl "180+1"]
[EndTime "10:55:44 PDT"]
[Termination "valeriocarnicelli won by checkmate"]

1. e4 {[%clk 0:02:53.4]} 1... e6 {[%clk 0:03:00]} 2. d4 {[%clk 0:02:53.2]} 2...
d5 {[%clk 0:03:00.5]} 3. Nc3 {[%clk 0:02:53.4]} 3... Bb4 {[%clk 0:02:59.7]} 4.
e5 {[%clk 0:02:53.6]} 4... c5 {[%clk 0:03:00]} 5. a3 {[%clk 0:02:53.7]} 5... Ba5
{[%clk 0:03:00.3]} 6. b4 {[%clk 0:02:48.7]} 6... cxd4 {[%clk 0:02:59.7]} 7. Qg4
{[%clk 0:02:48.2]} 7... Kf8 {[%clk 0:02:54]} 8. bxa5 {[%clk 0:02:46.1]} 8...
dxc3 {[%clk 0:02:53.2]} 9. a4 {[%clk 0:02:45.7]} 9... Nc6 {[%clk 0:02:49.8]} 10.
Ba3+ {[%clk 0:02:44.5]} 10... Nge7 {[%clk 0:02:50]} 11. Nf3 {[%clk 0:02:44.3]}
11... Kg8 {[%clk 0:02:48.8]} 12. Bd3 {[%clk 0:02:42.2]} 12... Qxa5 {[%clk
0:02:37.6]} 13. O-O {[%clk 0:02:39.6]} 13... Bd7 {[%clk 0:02:27.1]} 14. h4
{[%clk 0:02:39.3]} 14... h5 {[%clk 0:02:23.1]} 15. Qg5 {[%clk 0:02:39.2]} 15...
Qd8 {[%clk 0:02:20.7]} 16. Qg3 {[%clk 0:02:31.6]} 16... Nf5 {[%clk 0:02:07]} 17.
Bxf5 {[%clk 0:02:30.8]} 17... exf5 {[%clk 0:02:06.9]} 18. Rab1 {[%clk 0:02:19]}
18... b6 {[%clk 0:02:05.8]} 19. Bd6 {[%clk 0:02:18.5]} 19... Rh6 {[%clk
0:02:02.8]} 20. Ng5 {[%clk 0:02:06.7]} 20... d4 {[%clk 0:02:01.1]} 21. Rfe1
{[%clk 0:01:49.7]} 21... Ne7 {[%clk 0:01:43.9]} 22. Qf3 {[%clk 0:01:38.8]} 22...
Rc8 {[%clk 0:01:40.1]} 23. Qb7 {[%clk 0:01:35.8]} 23... Ng6 {[%clk 0:01:27.4]}
24. Nxf7 {[%clk 0:01:25.6]} 24... Qe8 {[%clk 0:00:45.2]} 25. Nxh6+ {[%clk
0:01:11.1]} 25... gxh6 {[%clk 0:00:46.1]} 26. e6 {[%clk 0:01:11.3]} 26... Bxa4
{[%clk 0:00:44.9]} 27. Ra1 {[%clk 0:01:05.6]} 27... Bc6 {[%clk 0:00:28.3]} 28.
Qxa7 {[%clk 0:00:50]} 28... Nxh4 {[%clk 0:00:27.6]} 29. Qf7+ {[%clk 0:00:43.9]}
29... Qxf7 {[%clk 0:00:27.7]} 30. exf7+ {[%clk 0:00:44.3]} 30... Kxf7 {[%clk
0:00:28.6]} 31. Ra7+ {[%clk 0:00:44.3]} 31... Kg8 {[%clk 0:00:23]} 32. Ree7
{[%clk 0:00:43.1]} 32... Ng6 {[%clk 0:00:11.8]} 33. Rg7+ {[%clk 0:00:42.9]}
33... Kh8 {[%clk 0:00:11.5]} 34. Rh7+ {[%clk 0:00:43.2]} 34... Kg8 {[%clk
0:00:11.7]} 35. Rag7# {[%clk 0:00:43.4]} 1-0